Cogmind - Beta 14 @@@ ROGUE MODE // 2024.10.07 @ 13:38:18 Player: Komeiji O. Result: Destroyed by NS-322(R) with Subdweller Beam Cannon Performance ------------- Evolutions (0) 0 Regions Visited (3) 600 Robots Destroyed (25) 125 Value Destroyed (518) 518 Prototype IDs (0) 0 Alien Tech Used (0) 0 Bonus (-38) -38 TOTAL SCORE: 1205 Bonus ------- Follower Combat Kills 120 Friendly Fire -158 Cogmind --------- Core Integrity 0/250 Matter 228/300 Energy 105/200 System Corruption 0% Temperature Cool (9) Movement Treading (160) Location -10/Subcaves Parts ------- > --- POWER (1) -------- Subdweller Power Source > --- PROPULSION (2) --- Spiked Treads Subdweller Monowheel > --- UTILITY (2) ------ Small Storage Unit > --- WEAPON (2) ------- Subdweller Shrapnel Launcher > --- INVENTORY (8) ---- Subdweller Power Source Subdweller Monowheel Subdweller Optics Improved Terrain Scanner Subdweller Machine Gun Rocket Launcher Multitool Peak State ------------ > --- POWER ------------ Subdweller Power Source > --- PROPULSION ------- Spiked Treads Subdweller Monowheel > --- UTILITY ---------- Small Storage Unit > --- WEAPON ----------- Riot Gun Riot Gun > --- INVENTORY -------- Subdweller Power Source Subdweller Monowheel Subdweller Optics Improved Terrain Scanner Subdweller Machine Gun Rocket Launcher Subdweller Shrapnel Launcher Multitool [Rating: 14] Favorites ----------- Power Ion Engine Engine Ion Engine Propulsion Aluminum Leg Treads Light Treads Leg Aluminum Leg Wheel Subdweller Monowheel Utility Small Storage Unit Device Seismic Detector Storage Small Storage Unit Weapon EM Pulse Gun Energy Gun EM Pulse Gun Ballistic Gun Light Assault Rifle Launcher Rocket Launcher Build | -11 -10 -10 -10 ------- Run | Yrd Mat Min Sub Slots Evolved . | . . . . Power . | . . . . Propulsion . | . . . . Utility . | . . . . Weapon . | . . . . Parts Attached 35 | 7 10 2 16 Power 4 | 1 1 . 2 Engine 4 | 1 1 . 2 Core . | . . . . Reactor . | . . . . Propulsion 7 | 2 3 . 2 Treads 3 | 2 . . 1 Leg 3 | . 3 . . Wheel 1 | . . . 1 Hover . | . . . . Flight . | . . . . Utility 4 | 2 1 . 1 Device 3 | 1 1 . 1 Storage 1 | 1 . . . Processor . | . . . . Hackware . | . . . . Protection . | . . . . Artifact . | . . . . Weapon 20 | 2 5 2 11 Energy Gun 8 | 1 4 1 2 Energy Cannon . | . . . . Ballistic Gun 7 | 1 1 . 5 Ballistic Cannon . | . . . . Launcher 5 | . . 1 4 Special Weapon . | . . . . Impact Weapon . | . . . . Slashing Weapon . | . . . . Piercing Weapon . | . . . . Special Melee Weapon . | . . . . Unidentified Prototypes . | . . . . Parts Lost 5 | . 2 . 3 Power . | . . . . Propulsion 1 | . 1 . . Utility 1 | . . . 1 Weapon 3 | . 1 . 2 Highest Loss Streak 2 | . 1 . 2 To Critical Strikes . | . . . . Average Slot Usage (%) 97 | . 97 100 97 Engine 14 | . 14 14 14 Treads 11 | . 14 . 12 Leg 14 | . 13 28 13 Device 12 | . 14 14 11 Storage 14 | . 14 14 14 Energy Gun 11 | . 14 26 7 Ballistic Gun 9 | . 11 . 10 Launcher 6 | . . 1 10 Peak Build Rating 14 | 9 9 9 14 Average Rating 9 | 7 7 8 10 On Entrance 6 | . 9 8 8 Naked Turns . | . . . . Heaviest Build 23 | 14 15 17 23 Greatest Support 40 | 40 40 20 20 Greatest Overweight (x) 1 | . . . 1 Average Overweight (x) . | . . . . Largest Inventory Capacity 8 | 8 8 8 8 Average Capacity 7 | 7 8 8 8 Most Carried 8 | 5 8 8 8 Average Carried 6 | 3 7 7 7 Final Capacity 8 | 8 8 8 8 Final Carried 8 | 5 8 8 7 Class Distribution -------------------- 100% | Mutant Dominant Class ---------------- Mutant | -10/Materials Mutant | -10/Mines Mutant | -10/Subcaves Resources | -11 -10 -10 -10 ----------- Run | Yrd Mat Min Sub Matter Collected 713 | 286 132 20 275 Remotely . | . . . . Salvage Created 637 | 107 390 11 129 Parts 48 | 11 22 4 11 Haulers Intercepted . | . . . . Recyclers Shooed . | . . . . Parts Field Recycled . | . . . . Retrieved Matter . | . . . . Parts Self-Destructed 9 | . . . 9 Prevented . | . . . . Kills | -11 -10 -10 -10 ------- Run | Yrd Mat Min Sub Combat Hostiles Destroyed 16 | . 10 3 3 Guns 10 | . 8 . 2 AOE 6 | . 2 3 1 Classes Destroyed 6 | 1 4 . 1 Worker 1 | . 1 . . Tunneler 6 | 6 . . . Mechanic 1 | . 1 . . Swarmer 5 | . 2 3 . Grunt 9 | . 8 . 1 Subdweller 3 | . . . 3 Best Kill Streak 4 | 2 4 3 2 Combat Bots Only 4 | . 4 3 2 Max Kills in Single Turn 2 | 1 2 2 1 Gunslinging . | . . . . Exploded 2 | . 1 2 1 Melee . | . . . . Uniques/NPCs Destroyed . | . . . . Combat | -11 -10 -10 -10 -------- Run | Yrd Mat Min Sub Hostile Shots Fired 144 | . 99 5 40 Missed 40 | . 27 1 12 Damage Taken 1539 | . 778 41 720 Core 265 | . 110 3 152 Absorbed by Shields . | . . . . Core Remaining (%) 100 | 100 . . . Volleys Fired 99 | 16 54 2 27 Largest 2 | 2 2 2 2 Hottest 100 | 70 80 73 100 Shots Fired 191 | 32 105 4 50 Gun 179 | 32 105 2 40 Cannon . | . . . . Launcher 12 | . . 2 10 Special . | . . . . Kinetic 92 | 16 62 . 14 Thermal 26 | 16 10 . . Explosive 9 | . . 2 7 Electromagnetic 64 | . 33 2 29 Robot Hit Streak 16 | 6 15 1 16 Robot Miss Streak 5 | 2 5 1 1 Penetration Max . | . . . . Secondary Targets 1 | . . . 1 Max Gunslinging Chain 1 | . . . 1 Shots Hit Robots 124 | 21 65 1 37 Core Hits 46 | 8 21 3 14 Critical Kills 2 | . 2 . . Critical Parts Destroyed . | . . . . Critical Strikes 4 | 2 2 . . Burn 2 | 2 . . . Destroy 2 | . 2 . . Melee Attacks . | . . . . Impact . | . . . . Slashing . | . . . . Piercing . | . . . . Sneak Attacks . | . . . . Combat Hostiles . | . . . . Follow-up Attacks . | . . . . Damage Inflicted 2004 | 232 806 267 699 Guns 1236 | 228 687 . 321 Cannons . | . . . . Explosions 764 | . 119 267 378 Melee . | . . . . Ramming 4 | 4 . . . Kinetic 939 | 79 395 . 465 Thermal 380 | 149 231 . . Explosive 365 | . . 267 98 Electromagnetic 316 | . 180 . 136 Impact . | . . . . Slashing . | . . . . Piercing . | . . . . Highest Corruption . | . . . . Average Corruption . | . . . . Corruption Purged . | . . . . Corruption Blocked . | . . . . Overload Shots . | . . . . Overflow Damage 71 | . . 71 . Projectiles . | . . . . Explosions 71 | . . 71 . Melee . | . . . . Knockbacks . | . . . . Impact . | . . . . Kinetic . | . . . . Secondary . | . . . . Self-Inflicted Damage 81 | . 32 9 40 Shots 4 | . 1 1 2 Rammed 1 | 1 . . . Targets Rammed 2 | 2 . . . Kicked . | . . . . Crushed 1 | 1 . . . Highest Temperature 152 | 60 152 24 2 Average Temperature 40 | 22 49 12 2 Received Heat Transfer 510 | . 348 . 162 Siege Activations . | . . . . Robots Corrupted . | . . . . Combat Hostiles . | . . . . Parts Fried 2 | . 1 . 1 Impact Corruptions . | . . . . Robots Melted . | . . . . Combat Hostiles . | . . . . Parts Melted . | . . . . Heat Transferred 1125 | 592 533 . . Parts Sabotaged . | . . . . Parts Stolen . | . . . . Parts Stripped . | . . . . Power Chain Reactions 3 | . 3 . . Alert | -11 -10 -10 -10 ------- Run | Yrd Mat Min Sub Peak Influence 223 | 30 223 201 . Initial 86 | . 19 86 . Average 87 | 13 127 95 . Maximum Alert Level 1 | . 1 1 . Low Security (%) 92 | 100 89 92 . Level 1 7 | . 10 7 . Level 2 . | . . . . Level 3 . | . . . . Level 4 . | . . . . Level 5 . | . . . . High Security . | . . . . Max Security . | . . . . Squads Dispatched 4 | . 4 . . Investigation 3 | . 3 . . Extermination . | . . . . Reinforcement 1 | . 1 . . Assault . | . . . . Garrison . | . . . . Intercept . | . . . . Searches Triggered . | . . . . Construction Impeded . | . . . . Haulers Reinforced . | . . . . Active Scanning Responses . | . . . . Cargo Convoy Interrupts . | . . . . Stealth | -11 -10 -10 -10 --------- Run | Yrd Mat Min Sub Distress Signals 1 | . 1 . . Communications Jammed . | . . . . Distress Signals . | . . . . Times Spotted 32 | . 20 3 9 Peak Tracking Total 5 | . 5 3 2 Tactical Retreats 3 | . 3 . . Traps | -11 -10 -10 -10 ------- Run | Yrd Mat Min Sub Traps Triggered 1 | . 1 . . Indirectly . | . . . . Trap Hack Attempts . | . . . . Triggered . | . . . . Disarmed . | . . . . Reprogrammed . | . . . . Reused . | . . . . Traps Extracted . | . . . . Installed . | . . . . Triggered 2 | . . . 2 Machines | -11 -10 -10 -10 ---------- Run | Yrd Mat Min Sub Machines Disabled 2 | . 1 1 . Max in Single Turn 1 | . 1 1 . Machines Repaired . | . . . . Machines Dismantled . | . . . . Machines Sabotaged . | . . . . Overloaded Fab Kills . | . . . . Hacking | -11 -10 -10 -10 --------- Run | Yrd Mat Min Sub Machines Accessed 4 | . 4 . . Terminals 4 | . 4 . . Fabricators . | . . . . Repair Stations . | . . . . Recycling Units . | . . . . Scanalyzers . | . . . . Garrison Access . | . . . . Total Hacks 9 | . 9 . . Successful 3 | . 3 . . Failed 6 | . 6 . . Catastrophic 1 | . 1 . . Database Lockouts . | . . . . Manual 8 | . 8 . . Terminals 9 | . 9 . . Fabricators . | . . . . Repair Stations . | . . . . Recycling Units . | . . . . Scanalyzers . | . . . . Garrison Access . | . . . . Terminal Hacks 2 | . 2 . . Dispatch Records 1 | . 1 . . Hauler Manifests 1 | . 1 . . Fabricator Hacks . | . . . . Repair Station Hacks . | . . . . Recycling Unit Hacks . | . . . . Scanalyzer . | . . . . Garrison Access Hacks . | . . . . Unauthorized Hacks 1 | . 1 . . Terminals 1 | . 1 . . Botnet 1 | . 1 . . Fabricators . | . . . . Repair Stations . | . . . . Recycling Units . | . . . . Scanalyzers . | . . . . Garrison Access . | . . . . Data Cores Recovered . | . . . . Used . | . . . . Hacking Detections 4 | . 4 . . Full Trace Events 2 | . 2 . . Feedback Events . | . . . . Feedback Blocked . | . . . . Robot Schematics Acquired . | . . . . Robots Built . | . . . . Authchips . | . . . . Time . | . . . . Total Robot Build Rating . | . . . . Part Schematics Acquired . | . . . . Parts Built . | . . . . Authchips . | . . . . Time . | . . . . Total Part Build Rating . | . . . . Parts Repaired . | . . . . Time . | . . . . Parts Recycled . | . . . . Recycled Matter . | . . . . Retrieved Matter . | . . . . Retrieved Components . | . . . . Parts Scanalyzed . | . . . . Part Schematics Acquired . | . . . . Parts Damaged . | . . . . Bothacking | -11 -10 -10 -10 ------------ Run | Yrd Mat Min Sub Used RIF Installer . | . . . . Robots Hacked . | . . . . Non-combat . | . . . . Combat . | . . . . Robot Hacks Applied . | . . . . Relay Couplers Released . | . . . . Fabnet Peak Effective % . | . . . . Robots Rewired . | . . . . Allies Hacked . | . . . . Hacks Repelled . | . . . . Allies | -11 -10 -10 -10 -------- Run | Yrd Mat Min Sub Total Allies 3 | . . 3 . Largest Group 3 | . . 3 3 Highest-Rated Group 40 | . . 40 40 Highest-Rated Ally 16 | . . 16 16 Total Orders 2 | . . . 2 STAY 1 | . . . 1 FOLLOW 1 | . . . 1 Ally Attacks 22 | . . . 22 Total Damage 217 | . . . 217 Kills 4 | . . . 4 Allies Corrupted . | . . . . Allies Melted . | . . . . Intel | -11 -10 -10 -10 ------- Run | Yrd Mat Min Sub Robot Analysis Total . | . . . . Derelict Logs Recovered 2 | . . . 2 Drone Launches . | . . . . Drone Recoveries . | . . . . Exploration | -11 -10 -10 -10 ------------- Run | Yrd Mat Min Sub Turns Passed 2320 | 345 597 214 1164 Spaces Moved 1221 | 172 278 167 604 Core 2 | 2 . . . Treads 751 | 170 126 . 455 Legs 374 | . 152 167 55 Wheels 94 | . . . 94 Hover . | . . . . Flight . | . . . . Fastest Speed 50 | 50 120 120 110 Average Speed 156 | 158 138 120 174 Slowest Speed 260 | 160 160 120 260 Overloaded Moves . | . . . . Propulsion Burnouts . | . . . . Robots Hopped . | . . . . Cave-ins Triggered . | . . . . Exploration Rate (%) 28 | 7 42 33 31 Regions Visited 3 Branch Regions 2 Pre-discovered Areas . | . . . . Known Exits Taken . | . . . . Unknown Exits Taken 3 | 1 1 1 . Scrap Searched 1 | . . 1 . Spaces Dug . | . . . . Terrain Destroyed 131 | . 12 20 99 Melee . | . . . . Projectile . | . . . . AOE 131 | . 12 20 99 Terrain Rammed . | . . . . Walls Destroyed . | . . . . Machines Disabled . | . . . . Actions | -11 -10 -10 -10 --------- Run | Yrd Mat Min Sub Total 1456 | 211 401 176 668 Wait 56 | 10 40 4 2 Move 1218 | 171 277 166 604 Hop . | . . . . Pick Up 21 | 5 8 1 7 Fast Attach 14 | 7 4 . 3 Attach 4 | . 2 . 2 Detach 4 | . 3 . 1 Swap 17 | . 4 2 11 Drop 21 | . 9 1 11 Fire 99 | 16 54 2 27 Melee . | . . . . Ram . | . . . . Kick . | . . . . Crush 2 | 2 . . . Escape Stasis . | . . . . Rewire . | . . . . Trap . | . . . . Miscellaneous . | . . . . Route ------- -11/Scrapyard -10/Materials (discovered 2 exits: [*Min x2]) -10/Mines -10/Subcaves (discovered 2 exits: [*Mat x2]) History --------- Turn | Location | Event 39 | -11/Scrapyard | Discovered new exit (range 16) 346 | -11/Scrapyard | Entered Materials 347 | -10/Materials | Build established: Mutant 366 | -10/Materials | Discovered new exit (range 16) 686 | -10/Materials | Discovered new exit (range 9) 943 | -10/Materials | Entered Mines 947 | -10/Mines | Assisted by bots powering up and referring to "LRC-V3" 1009 | -10/Mines | Received a Rocket Launcher from a helpful Derelict 1076 | -10/Mines | Found a damaged Exp. Sensor Array with a note attached 1143 | -10/Mines | Discovered new exit (range 7) 1157 | -10/Mines | Entered Subcaves 1157 | -10/Subcaves | Accompanied by 3 allies 1169 | -10/Subcaves | Core integrity fell below 50% 1236 | -10/Subcaves | Discovered new exit (range 9) 1237 | -10/Subcaves | Shifting Twisted Machinery released Spk. Treads 1246 | -10/Subcaves | Shifting Twisted Machinery released Sub. Shrapnel Launcher 1469 | -10/Subcaves | Ambushed by Subdweller buried in earth 1531 | -10/Subcaves | Learned Materials emergency access door positions 1913 | -10/Subcaves | Learned Materials trap positions 1956 | -10/Subcaves | Discovered new exit (range 14) 2312 | -10/Subcaves | Core integrity fell below 20% 2321 | -10/Subcaves | Destroyed by NS-322(R) with Subdweller Beam Cannon Last Messages --------------- 01976_ Acquired 13 matter. 01988_ Acquired 15 matter. 01991_ Acquired 11 matter. 02083_ Subatomizers dissect the Wheel. 02158_ Seismic Detector destroyed. 02162_ 8Z-25O(R) suffers critical hit (Burn). 02170_ 17-59D(R) destroyed. 02171_ Trooper 1b destroyed. 02176_ 8Z-25O(R) destroyed. 02177_ Dropped Aluminum Leg. 02186_ Acquired Sub. Monowheel. 02187_ Acquired 36 matter. 02189_ Acquired 37 matter. 02191_ Acquired Sub. Monowheel. 02199_ Acquired 44 matter. 02202_ Acquired Riot Gun. 02220_ Dropped Assault Rifle. 02220_ Acquired Riot Gun. 02307_ Trooper 1a destroyed. 02317_ Riot Gun destroyed. Map ----- +----------------------------------------------------+ | ?????????????????????????????????????????????????? | | ?????????????????????????????????????????????????? | | ?????????????????????????????????????????????????? | | ?????????????????????????????????????????????????? | | ?????????????????????????????????????????????????? | | ?????????????????????????????????????????????????? | | ?????????????????????????????????????????????????? | | ?????????????????????????????????????????????????? | | ?????????????????????????????????????????????????? | | ?????????????????????????????????????????????????? | | ?????????????????????????????????????????????????? | | ?????????????????????????????????????????????????? | | ?????????????????????????????????????????????????? | | ?????????????????????????????????????????????????? | | ?????????????????????????????????????????????????? | | ???????????????###???????????????????????????????? | | ????????????? ""??????????????????????????????? | | ????????????? " #?????????????????????????????? | | ?????????????? ##???????????????????????????? | | ???????????????# ;; ??????????????????????????? | | ????????????????? R;;??????????????????????????? | | ??????????????????#;R ;;?????????????????????????? | | ??????????????????#;;%[;#????????????????????????? | | ??????????????????? ;; #???????????????????????? | | ????????????????????## ####????????????????????? | | ???????????????????## @ #????????????????????? | | ???????????????????# ##????????????????????? | | ???????????????????# #?????????????????????? | | ???????????????????#### ##?????????????????????? | | ??????????????????????# ###???????????????????? | | ??????????????????????# #??????##???????????? | | ??????????????????????# #?????## #??????????? | | ??????????????????????## #????## ###????##?? | | ?????????? ?????## ###????# ###?# ##? | | ????????? ????# #??###### ## #? | | ???????????# ?### #### ## #? | | ?????????? # # # # ## #? | | ????????# ##### #? | | ??????????????# ### # ##### ##? | | ??????????????## ## # ##?### ### ##?? | | ??????????????????##### [ #????# [ ##??? | | ??????????????????????## #????## #???? | | ???????????????????????# #?????# #???? | | ???????????????????????# ##???# ## # #??? | | ???????????????????????# ##?# ###### #?? | | ???????????????????????# ### #????# #?? | | ???????????????????????# #### ##???# ##?? | | ???????????????????????## # #???? ??? | | ????????????????????????### # #???? ?? | | ?????????????????????????## #???? ? | +----------------------------------------------------+ Best States ------------- Heat Dissipation 25 Energy Generation 15 Energy Capacity 250 Matter Stores 300 Matter Capacity 300 Sight Range 16 Terrain Scan Range 16 Terrain Scan Density 10 Evasion (%) 55 Recoil Reduction 2 Item Schematics ----------------- None Robot Schematics ------------------ None Fabricated ------------ Nothing Alien Tech Used ----------------- None Achievements -------------- None Challenges ------------ None Game ------ Seed PlatingCommDetector Manual? 0 Play Time 00:29:11 Cumulative 61.5 hours Start 2024.10.07 @ 13:07:29 End 2024.10.07 @ 13:38:18 Sessions 1 Manual Loads 0 Difficulty Rogue Special Mode None Game No. 23 Rogue 22 Adventurer 1 Explorer 0 Win Type - Total 0 Types 0/0/0/0/0/0/0/0/0 Lore% 10 Gallery% 34 Achievement% 30 Wizard Run 0 Options --------- Layout 0 ASCII 0 Keyboard 1 Movement Vi Keybinds 0 Fullscreen 2 Font 36/Terminus++ Map View 76x50 Zoom Use 0% Tactical HUD 1 Map Filters NONE Filters NONE Steam 1 RUN: a5085bd3-adda-445a-9525-5300b905466b